Workbook

Sheet Schedule 1
A1: Rate=F | B1: PROVINCIAL PAVED ROADS REHABILITATION OF MR00381 (HUMANSDORP TO FRANCIS BAY)
A2: <NewDataSet>· <xs:schema id="NewDataSet" xmlns="" xmlns:xs="http://www.w3.org/2001/XMLSchema" xmlns:msdata="urn:schemas-microsoft-com:xml-msdata">· <xs:element name="NewDataSet" msdata:IsDataSet="true" msdata:MainDataTable="SummaryItems" msdata:UseCurrentLocale="true">· <xs:complexType>· <xs:choice minOccurs="0" maxOccurs="unbounded">· <xs:element name="SummaryItems">· <xs:complexType>· <xs:sequence>· <xs:element name="ContractNo" type="xs:short" minOccurs="0" />· <xs:element name="ScheduleNo" type="xs:short" minOccurs="0" />· <xs:element name="SortNo" type="xs:short" minOccurs="0" />· <xs:element name="Item" type="xs:string" minOccurs="0" />· <xs:element name="SubTotalText" type="xs:string" minOccurs="0" />· <xs:element name="Description" type="xs:string" minOccurs="0" />· <xs:element name="CalcType" type="xs:string" minOccurs="0" />· <xs:element name="CalcValue" type="xs:double" minOccurs="0" />· <xs:element name="UseFirstSubTotal" type="xs:boolean" minOccurs="0" />· <xs:element name="ExclFromWorks" type="xs:boolean" minOccurs="0" />· <xs:element name="ExclFromProjected" type="xs:boolean" minOccurs="0" />· </xs:sequence>· </xs:complexType>· </xs:element>· </xs:choice>· </xs:complexType>· </xs:element>· </xs:schema>· <SummaryItems>· <ContractNo>1</ContractNo>· <ScheduleNo>0</ScheduleNo>· <SortNo>1</SortNo>· <Item>1</Item>· <Description>CONTINGENCIES (Add 10% of Subtotal C)</Description>· <CalcType>%</CalcType>· <CalcValue>7.5</CalcValue>· <UseFirstSubTotal>true</UseFirstSubTotal>· <ExclFromWorks>false</ExclFromWorks>· <ExclFromProjected>false</ExclFromProjected>· </SummaryItems>· <SummaryItems>· <ContractNo>1</ContractNo>· <ScheduleNo>0</ScheduleNo>· <SortNo>2</SortNo>· <Item>2</Item>· <Description>SPECIAL MATERIALS RISE &amp; FALL (Add 3% of Subtotal C)</Description>· <CalcType>%</CalcType>· <CalcValue>3</CalcValue>· <UseFirstSubTotal>true</UseFirstSubTotal>· <ExclFromWorks>false</ExclFromWorks>· <ExclFromProjected>false</ExclFromProjected>· </SummaryItems>· <SummaryItems>· <ContractNo>1</ContractNo>· <ScheduleNo>0</ScheduleNo>· <SortNo>3</SortNo>· <Item>3</Item>· <Description>CONTRACT PRICE ADJUSTMENT (Add 5% of Subtotal C)</Description>· <CalcType>%</CalcType>· <CalcValue>5</CalcValue>· <UseFirstSubTotal>true</UseFirstSubTotal>· <ExclFromWorks>false</ExclFromWorks>· <ExclFromProjected>false</ExclFromProjected>· </SummaryItems>· <SummaryItems>· <ContractNo>1</ContractNo>· <ScheduleNo>0</ScheduleNo>· <SortNo>4</SortNo>· <Item>4</Item>· <Description>VALUE ADDED TAX (VAT) (Add 15% of Subtotal D)</Description>· <CalcType>%</CalcType>· <CalcValue>15</CalcValue>· <UseFirstSubTotal>false</UseFirstSubTotal>· <ExclFromWorks>false</ExclFromWorks>· <ExclFromProjected>false</ExclFromProjected>· </SummaryItems>·</NewDataSet>
B3: Schedule A - General
G4: 1200 GENERAL REQUIREMENTS AND PROVISIONS
B5: Item | C5: Description | D5: Unit | E5: Quantity | F5: Rate | G5: Amount R
A6: 159 | B6: C1.2 | C6: GENERAL REQUIREMENTS AND PROVISIONS
A8: 2811 | B8: B12.01 | C8: Relocation of existing Eskom services:
A10: 6935 | C10: (a) Direct payment to Eskom or its agents | D10: Prov Sum | E10: 250 000 | G10: =E10 -> 250 000.00
A12: 6936 | C12: (b) Handling costs and profit in respect of subitem B12.01(a) above | D12: % | E12: =G10 -> 250 000
A14: 6937 | B14: B12.02 | C14: Relocation of existing Telkom services:
A16: 6938 | C16: (a) Direct payment to Telkom or its agents | D16: Prov Sum | E16: 250 000 | G16: =E16 -> 250 000.00
A18: 6939 | C18: (b) Handling costs and profit in respect of subitem B12.02(a) above | D18: % | E18: =G16 -> 250 000
A20: 6940 | B20: B12.03 | C20: Relocation and reinstatement of existing watermains belonging to local or district authority:
A22: 6941 | C22: (a) Direct payment to watermains authority, its agent or the Contractor | D22: Prov Sum | E22: 500 000 | G22: =E22 -> 500 000.00
A24: 6942 | C24: (b) Handling costs and profit in respect of subitem B12.03(a) above | D24: % | E24: =G22 -> 500 000
B26: B12.04 | C26: Community based projects including transportation of local employees:
C27: (a) Cost of projects approved by the Employe or transportation of local employees and instructed by the Employer's Agent in terms of transportation of local employees | D27: Prov Sum | E27: 1800 000.00 | F27: 1 | G27: =E27 -> 1800 000.00
C29: (b) Handling costs and profit in respect of subitem B12.04(a) above | D29: % | E29: =G27 -> 1800 000.00
A32: 2814 | B32: B12.05 | C32: Community / stakeholder liaison and social facilitation:
A34: 2815 | C34: (a) Contractor’s obligation in terms of community / stakeholder liaison | D34: month | E34: 24.00
A36: 2816 | C36: (b) Project Liaison Committee (PLC):
A38: 2817 | C38: (i) Payment of stipends to members of the PLC for attending meetings | D38: Prov Sum | E38: 350 000.00 | G38: =E38 -> 350 000.00
A40: 2818 | C40: (ii) Handing cost and profit in respect to subsubitem B12.09(b)(i) | D40: % | E40: =G38 -> 350 000.00
A42: 2819 | C42: (c) Project Liaison Officer (PLO):
A44: 2820 | C44: (i) Salary, including employer contributions and other staff related costs | D44: Prov Sum | E44: 350 000.00 | F44: 1.00 | G44: =E44 -> 350 000.00
A46: 2821 | C46: (ii) Transport and communication | D46: Prov Sum | E46: 85 000.00 | G46: =E46 -> 85 000.00
A48: 2822 | C48: (iii) Handing cost and profit in respect to subsubitems B12.09(c)(i) and (ii) | D48: % | E48: =E44+E46 -> 435 000.00
A50: 2823 | B50: B12.06 | C50: Provision of training venue and facilities | D50: L/Sum | E50: 1.00
A52: 2824 | B52: B12.07 | C52: Provision of Employer’s in-service training student(s):
B54: Total Carried Forward
D55: 1
B58: PROVINCIAL PAVED ROADS RESEAL OF MR00391
B60: Schedule A - General
G61: 1200 GENERAL REQUIREMENTS AND PROVISIONS
B62: Item | C62: Description | D62: Unit | E62: Quantity | F62: Rate | G62: Amount R
B63: Brought Forward | G63: =G54 -> 0.00
A64: 2825 | C64: (a) Monthly stipend for Employer’s in-service training student(s), employed by the Contractor | D64: Prov Sum | E64: 450 000.00 | F64: 1.00 | G64: =E64 -> 450 000.00
A66: 2826 | C66: (b) Handing cost and profit in respect to subitem B12.11(a) | D66: % | E66: =G64 -> 450 000.00
A68: 7017 | B68: B12.08 | C68: Programming and Reporting:
A70: 7018 | C70: (a) Submission of a Scheme 2 Initial Programme | D70: lump sum | E70: 1.0
A72: 7019 | C72: (b) Submission of a Scheme 2 Full Programme | D72: lump sum | E72: 1.0
A74: 7020 | C74: (c) Reviewing and updating a Scheme 2 programme every month | D74: month | E74: 24.0
A76: 7021 | C76: (d) Preparation and submission of all information and reports specified in the Contract Documentation | D76: month | E76: 24.0
B121: Total Carried Forward To Summary | G121: =SUM(G63:G120) -> 450 000.00
D122: 2
B125: Schedule A - General
G126: 1300 CONTRACTOR’S SITE ESTABLISHMENT AND GENERAL OBLIGATIONS
B127: Item | C127: Description | D127: Unit | E127: Quantity | F127: Rate | G127: Amount R
A128: 198 | B128: C1.3 | C128: CONTRACTOR’S SITE ESTABLISHMENT AND GENERAL OBLIGATIONS
A130: 2868 | B130: B13.01 | C130: The Contractor's general obligations:
A132: 2869 | C132: (a) Fixed obligations | D132: lump sum | E132: 1.00
A134: 2870 | C134: (b) Value-related obligations | D134: lump sum | E134: 1.00
A136: 2871 | C136: (c) Time-related obligations
A138: 5177 | C138: (i) Start-up period (From Commencement of the Contract to Commencement of the Works) | D138: month | E138: 2.00
A140: 6295 | C140: (ii) Construction period (From Commencement of the Works to Due Completion Date) | D140: month | E140: 24.00
A142: 6296 | C142: Note: The combined value of subitems (a), (b), (c)(i) and (c)(ii) should not exceed 15% of the quotation sum for a work package (excluding; provisional and prime cost sums and its related % mark-up amount in the bill of quantities, total amount for Section B1800: Dayworks, allowances for contingencies and contract price adjustments and VAT), the framework contractor shall state his reasons in writing for pricing in this manner. The framework contractor's attention is drawn to the applicable quotation returnable schedule, to be completed by the framework contractor for a work package quotation.
A144: 6297 | B144: B13.02 | C144: Contract sign boards | D144: No | E144: 2.00
A146: 6298 | B146: B13.03 | C146: Site security measures:
A148: 6299 | C148: (a) Supply and installation of security measures | D148: lump sum | E148: 1.00
A150: 6300 | C150: (b) Provision of security guards / watchmen and an armed response service | D150: month | E150: 24.00
A152: 6301 | B152: B13.04 | C152: Monthly reporting | D152: month | E152: 24.00
A154: 6302 | B154: B13.05 | C154: Survey of the existing road and road markings:
A156: 6303 | C156: (a) Topographical survey of road detail and a DTM strip survey for:
A158: 6323 | C158: (i) Humansdorp to St Francisbay (21km) | D158: ha | E158: 24.000
A160: 6305
A162: 6306
A164: 6307
B175: Total Carried Forward To Summary
D176: 3
B179: Schedule A - General
G180: 1400 HOUSING, OFFICES AND LABORATORY FOR THE ENGINEER'S SITE PERSONNEL
B181: Item | C181: Description | D181: Unit | E181: Quantity | F181: Rate | G181: Amount R
A182: 199 | B182: 1400 | C182: SECTION 1400: HOUSING, OFFICES AND LABORATORY FOR THE ENGINEER'S SITE PERSONNEL
A184: 6324 | B184: B14.01 | C184: Office and laboratory accommodation:
A186: 6325 | C186: (a) Offices and conference room (interior floor space only) | D186: m² | E186: 140.00
A188: 6326 | C188: (b) Laboratories (interior floor space only) | D188: m² | E188: 190.00
A190: 6327 | C190: (c) Open concrete working floors, 150 mm thick | D190: m² | E190: 160.00
A192: 6328 | C192: (d) Roofs over open concrete working floors | D192: m² | E192: 80.00
A194: 6329 | C194: (e) Ablution unit (equipment as specified) | D194: No | E194: 2.00
A196: 6330 | C196: (f) Store rooms inside the laboratory | D196: m² | E196: 24.00
A198: 6331 | C198: (g) Kitchen unit (equipment as specified) | D198: No | E198: 2.00
A200: 6332 | C200: (h) Change room with shower | D200: No | E200: 1.00
A204: 6333 | B204: B14.02 | C204: Office and laboratory furniture:
A206: 6334 | C206: (a) Chairs:
A208: 6335 | C208: (i) Office swivel chair | D208: No | E208: 6.00
A210: 6336 | C210: (ii) Office chair | D210: No | E210: 12.00
A212: 6337 | C212: (c) High chairs for laboratory | D212: No | E212: 12.00
A214: 6338 | C214: (d) Office desk with 3 drawers (at least one lockable drawer) | D214: No | E214: 8.00
A216: 6339 | C216: (f) Conference table (including 12 No. sturdy chairs) | D216: No | E216: 2.00
A218: 6340 | B218: B14.03 | C218: Office and laboratory fittings Installations and equipment:
A220: 6341 | C220: (a) Items measured by number:
A222: 6342 | C222: (i) 220/250 volt power outlet plug point:
A224: 6343 | C224: (1) 15 Ampere | D224: No | E224: 50.00
A226: 6344 | C226: (2) 20 Ampere | D226: No | E226: 10.00
A228: 6345 | C228: (ii) 400/231 volt 3-phase power outlet plug point | D228: No | E228: 1.00
A230: 6346 | C230: (iii) Single 80 watt fluorescent tube ceiling light complete with ballast and tubes | D230: No | E230: 1.00
A232: 6347 | C232: (iv) Double 80 watt fluorescent tube ceiling light complete with ballast and tubes | D232: No | E232: 30.00
A234: 6348 | C234: (vii) Laboratory basins complete with swan-neck taps and drains | D234: No | E234: 8.00
A236: 6349 | C236: (viii) Extractor fans installed complete with own power connections | D236: No | E236: 1.00
B238: Total Carried Forward
D239: 4
B242: Schedule A - General
G243: 1400 HOUSING, OFFICES AND LABORATORY FOR THE ENGINEER'S SITE PERSONNEL
B244: Item | C244: Description | D244: Unit | E244: Quantity | F244: Rate | G244: Amount R
B245: Brought Forward
A246: 6350 | C246: (x) Fire extinguishers (9,0 kg), all purpose dry powder type, complete, mounted on wall with brackets | D246: No | E246: 12.00
A248: 6351 | C248: (xi) Air-conditioning unit with own power connection | D248: No | E248: 10.00
A250: 6352 | C250: (xiv) General-purpose steel cupboards with shelves | D250: No | E250: 4.00
A252: 6353 | C252: (xv) Steel filing cabinets with drawers | D252: No | E252: 8.00
A254: 6354 | C254: (xvii) Bookcases | D254: No | E254: 8.00
A256: 6355 | C256: (xviii) UPS / Voltage stabilizer for use with a single computer | D256: No | E256: 6.00
A258: 6356 | C258: (xix) Plan holder | D258: No | E258: 4.00
A260: 6357 | C260: (xx) Floodlights complete with poles, 500 Watt (minimum) globes and photocell for security | D260: No | E260: 6.00
A262: 6358 | C262: (xxi) Rain gauge | D262: No | E262: 1.00
A264: 6359 | C264: (xxii) Minimum/maximum atmospheric temperature gauge | D264: No | E264: 1.00
A266: 6360 | C266: (xxiii) Digital thermometer | D266: No | E266: 1.00
A268: 6361 | C268: (xxiv) Mobile outdoor weather station | D268: No | E268: 1.00
A270: 6362 | C270: (xxv) 3 m aluminium straight edge complete with two measuring wedges | D270: No | E270: 1.00
A272: 6363 | C272: (xxvi) Measuring wheel | D272: No | E272: 1.00
A274: 6364 | C274: (xxvii) First aid kit | D274: No | E274: 6.00
A276: 6365 | C276: (xxviii) Standpipe complete with 30 m of 19 mm dia. heavy duty hose pipe | D276: No | E276: 1.00
A278: 6366 | C278: (b) Prime-cost items and items paid for in a lump sum:
A280: 6367 | C280: (i)Cell phones costs, including pro-rata rentals, for calls made in connection with contract administration | D280: PC sum | E280: 350 000.00 | G280: =E280 -> 350 000.00
A282: 6368 | C282: (ii) Handling costs and profit in respect of subitem B14.03(b)(i) above | D282: % | E282: =G280 -> 350 000.00
A284: 6369 | C284: (v) The provision of internet connectivity and Wi-Fi data for Employer’s Agent’s site staff | D284: PC sum | E284: 300 000.00 | G284: =E284 -> 300 000.00
A286: 6370 | C286: (vi) Handling costs and profit in respect of subitem B14.03(b)(v) above | D286: % | E286: =G284 -> 300 000.00
A288: 6371 | C288: (vii) Provision of computers, printers, related hardware, software and consumables | D288: PC sum | E288: 500 000.00 | G288: =E288 -> 500 000.00
A290: 6372 | C290: (viii) Handling costs and profit in respect of subitem B14.03(b)(vii) above | D290: % | E290: =G288 -> 500 000.00
A292: 6373 | C292: (ix) The provision of a complete 220/250 volt single phase electrical power installation, including all poles, insulators, wiring, switchboards, mains connections, meters etc. | D292: PC sum | E292: 50 000.00 | G292: =E292 -> 50 000.00
A294: 6374 | C294: (x) Handling costs and profit in respect of subitem B14.03(b)(ix) above | D294: % | E294: =G292 -> 50 000.00
B295: Total Carried Forward
D296: 5
B299: Schedule A - General
G300: 1400 HOUSING, OFFICES AND LABORATORY FOR THE ENGINEER'S SITE PERSONNEL
B301: Item | C301: Description | D301: Unit | E301: Quantity | F301: Rate | G301: Amount R
B302: Brought Forward | G302: =G295 -> 0.00
A303: 6375 | C303: (xi) The provision of a complete 440/231 volt three phase electrical power installation, including all poles, insulators, wiring, switchboards, mains connections, meters etc | D303: PC sum | E303: 50 000.00 | G303: =E303 -> 50 000.00
A305: 6376 | C305: (xii) Handling costs and profit in respect of subitem B14.03(b)(xi) above | D305: % | E305: =G303 -> 50 000.00
A307: 6377 | C307: (xiii) Provision of a 440/231 volt three phase electricity generator if electricity from a power supply authority is not available on site | D307: PC sum | E307: 500 000.00 | G307: =E307 -> 500 000.00
A309: 6382 | C309: (xiv) Handling costs and profit in respect of subitem B14.03(b)(xiii) above | D309: % | E309: =G307 -> 500 000.00
A311: 6383 | C311: (xv) The provision of all gas installations required at the site offices, laboratories and at the Employer’s Agent’s staff accommodation (if required), including gas storage cylinders, tubing, regulators, gas burners and shut-off cocks | D311: PC sum | E311: 25 000.00 | G311: =E311 -> 25 000.00
A313: 6384 | C313: (xvi) Handling costs and profit in respect of subitem B14.03(b)(xvi) above | D313: % | E313: =G311 -> 25 000.00
A315: 6385 | C315: (c) Items measured by area:
A317: 6386 | C317: (i) Shelving as specified, complete with brackets | D317: m² | E317: 60.00
A319: 6387 | C319: (ii) Work-benches complete with concrete slab top, minimum thickness 75mm | D319: m² | E319: 32.00
A321: 6388 | C321: (iv) Constant-temperature baths of concrete and/or plastered brick | D321: m² | E321: 12.00
A323: 6389 | C323: (v) Foundations for laboratory equipment | D323: m² | E323: 10.00
A325: 6390 | C325: (vii) Venetian blinds | D325: m² | E325: 30.00
A327: 6378 | C327: (viii) Notice boards as specified | D327: m² | E327: 10.00
A329: 6379 | C329: (x) Whiteboards and pens | D329: m² | E329: 10.00
A331: 6380 | B331: 14.04 | C331: Car ports:
A333: 6381 | C333: Car ports, as specified, at offices and laboratory buildings | D333: No | E333: 10.00
A335: 6391 | B335: B14.08 | C335: Services at Employer’s Agent’s site offices and laboratories:
A337: 6392 | C337: (i) Fixed costs | D337: lump sum | E337: 1.00
A339: 6393 | C339: (ii) Running costs | D339: month | E339: 24.00
A341: 6394 | B341: B14.10 | C341: Provision of photostat, printing and scanner facilities | D341: month | E341: 24.00
A343: 6395 | B343: B14.11 | C343: Office staff:
A345: 6396 | C345: (a) Secretary / receptionist | D345: prov sum | E345: 210 000.00 | G345: =E345 -> 210 000.00
A347: 6397 | C347: (c) Handing cost and profit in respect to subitem B14.11(a) and (b) | D347: % | E347: =G345 -> 210 000.00
B351: Total Carried Forward To Summary
D352: 6
B355: Schedule A - General
G356: B1800 SECTION B1800: DAYWORKS
B357: Item | C357: Description | D357: Unit | E357: Quantity | F357: Rate | G357: Amount R
A358: 200 | B358: B1800 | C358: SECTION B1800: DAYWORKS
A360: 6398 | B360: B18.01 | C360: Personnel:
A362: 6433 | C362: (a) During normal working hours:
A364: 6434 | C364: (i) Unskilled labour | D364: h | E364: 300.00
A366: 6435 | C366: (ii) Semi-skilled labour | D366: h | E366: 200.00
A368: 6436 | C368: (iii) Skilled labour | D368: h | E368: 100.00
A370: 6437 | C370: (iv) Ganger | D370: h | E370: 60.00
A372: 6438 | C372: (v) Flagmen | D372: h | E372: 300.00
A374: 6399 | C374: (b) Outside normal working hours and Saturdays:
A376: 6400 | C376: (i) Unskilled labour | D376: h | E376: 200.00
A378: 6401 | C378: (ii) Semi-skilled labour | D378: h | E378: 170.00
A380: 6402 | C380: (iii) Skilled labour | D380: h | E380: 70.00
A382: 6403 | C382: (iv) Ganger | D382: h | E382: 40.00
A384: 6404 | C384: (v) Flagmen | D384: h | E384: 200.00
A386: 6405 | C386: (c) Outside normal working hours Sundays and public holidays:
A388: 6406 | C388: (i) Unskilled labour | D388: h | E388: 250.00
A390: 6407 | C390: (ii) Semi-skilled labour | D390: h | E390: 220.00
A392: 6408 | C392: (iii) Skilled labour | D392: h | E392: 120.00
A394: 6409 | C394: (iv) Ganger | D394: h | E394: 70.00
A396: 6410 | C396: (v) Flagmen | D396: h | E396: 250.00
A398: 6411 | B398: B18.02 | C398: Equipment:
A400: 6412 | C400: (a) Air compressor of at least 7 m3/min (including breakers, hose and 2 operators) | D400: h | E400: 60.00
A402: 6413 | C402: (b) Generator or Alternator set of at least 10 kW capacity | D402: h | E402: 60.00
A404: 6414 | C404: (c) Vibrating plate compactor | D404: h | E404: 60.00
A406: 6415 | C406: (d) Tracked dozer, (D8) | D406: h | E406: 60.00
A408: 6416 | C408: (e) Grader (CAT 140G or similar) | D408: h | E408: 60.00
A410: 6417 | C410: (f) Front end loader minimum power 90 kW | D410: h | E410: 60.00
A412: 6418 | C412: (g) Tractor/Loader/Backhoe 50kW | D412: h | E412: 60.00
A414: 6419 | C414: (h) Tippers (5 m3) | D414: h | E414: 60.00
A416: 6420 | C416: (i) Tippers (10 m3) | D416: h | E416: 60.00
A418: 6432 | C418: (j) Traxcavator 80 kW power | D418: h | E418: 60.00
B420: Total Carried Forward
D421: 7
B424: Schedule A - General
G425: B1800 SECTION B1800: DAYWORKS
B426: Item | C426: Description | D426: Unit | E426: Quantity | F426: Rate | G426: Amount R
... 136 more rows

Sheet Schedule 2
A1: Rate=F | B1: PROVINCIAL PAVED ROADS REHABILITATION OF MR00381 (HUMANSDORP TO FRANCIS BAY)
B3: Schedule B - Works
G4: 1500 SECTION 1500: ACCOMMODATION OF TRAFFIC
B5: Item | C5: Description | D5: Unit | E5: Quantity | F5: Rate | G5: Amount R
A6: 6498 | B6: 1500 | C6: SECTION 1500: ACCOMMODATION OF TRAFFICS
A8: 6499 | B8: B15.01 | C8: Accommodation of traffic | D8: month | E8: 24.00
B10: B15.02 | C10: Earthworks for deviations
C12: (a) Shaping of deviations (Existing gravel shoulders) | D12: km | E12: 15.00
C14: (b) Cut and borrow to fill for deviations used as temporary diversions | D14: m3 | E14: =6*10000*0.3 -> 18 000.00
C16: (c) Cut to spoil | D16: m3 | E16: 9000
A18: 6500 | B18: B15.03 | C18: Temporary traffic-control facilities:
A20: 6501 | C20: (a) Flagmen | D20: man-shift | E20: 22680
A22: 6502 | C22: (b) Traffic controllers | D22: man-shift | E22: 4 880.00
A24: 6503 | C24: (c) Delineators including mounting bases and ballast:
A26: 6504 | C26: (i) Single sided, reversible left or right (800 x 200) | D26: No | E26: 1 500.00
A28: 6505 | C28: (ii) Double sided, reversible left or right (800 x 200) | D28: No | E28: 1 500.00
A30: 6506 | C30: (d) Traffic cones (750) | D30: No | E30: 1 000.00
A32: 6507 | C32: (e) Portable STOP and GO/RY signs | D32: No | E32: 5.00
A34: 6508 | C34: (f) Road signs, R- and TR-series, (1500) | D34: No | E34: 100.00
A36: 6509 | C36: (g) Road signs, TW-series, (2400mm x 400mm) | D36: No | E36: 75.00
A38: 6510 | C38: (h) Road signs, TIN-series:
A40: 6511 | C40: (i) TIN series (1200 x 400) | D40: No | E40: 80.00
A42: 6512 | C42: (ii) TIN series (1500 x 400) | D42: No | E42: 40.00
A44: 6513 | C44: (i) Movable barricade (TW411) (300 x 1800) / road sign (TR103/4) (1200) combination | D44: No | E44: 20.00
A46: 6514 | C46: (j) Sign mounted flashing amber lights (2 lights with the specified power supply) mounted on a backing board which is:
A48: 6515 | C48: (ii) 1 200 mm wide x 1200 mm high | D48: No | E48: 4.00
A50: 6516 | C50: (k) Road signs, TGS- AND TG-series | D50: m² | E50: 45.00
A52: 6517 | C52: (l) Road signs; 2400mm x 1800mm | D52: m² | E52: 50.00
A54: 6518 | C54: (m) Signalised traffic control stations | D54: station-month | E54: 6.00
A56: 6943 | C56: (p) Other traffic control measures ordered by the Employer's Agent:
A58: 6944 | C58: (i) Provision of other traffic control measures | D58: Prov Sum | E58: 1500 000 | G58: =E58 -> R1,500,000.00
A60: 6945 | C60: (ii) Handling costs and profit in respect of subsubitem B15.03(p)(i) | D60: % | E60: =G58 -> 1500 000
A62: 6497 | B62: B15.14 | C62: Provision of traffic safety equipment for use by the Employer’s Agent:
A64: 6913 | C64: (a) Magnetic base amber rotating lights | D64: No | E64: 5.00
B65: Total Carried Forward
D66: 17
B68: Schedule B - Works
G69: 1500 SECTION 1500: ACCOMMODATION OF TRAFFIC
B70: Item | C70: Description | D70: Unit | E70: Quantity | F70: Rate | G70: Amount R
B71: Brought Forward
A72: 6914 | C72: (b) Safety jackets | D72: No | E72: 50.00
A74: 6915 | C74: (c) Magnetic strips with the words “INSPECTION VEHICLE” | D74: No | E74: 5.00
A76: 6522 | B76: B15.15 | C76: Traffic Safety Officer (1 No off) | D76: man-month | E76: 24.00
A78: 6526 | B78: B15.16 | C78: Traffic Safety truck | D78: month | E78: 24.00
A80: 6529 | C80: REPAIR AND MAINTENANCE OF EXISTING ROADS WITH BITUMINOUS SURFACING USED AS TEMPORARY DEVIATIONS (TEMPORARY POTHOLE REPAIRS)
A82: 6530 | B82: 15/ B16.02 | C82: Overhaul on material hauled in excess of 1 km | D82: m³-km | E82: 1 000.00
A84: 6531 | B84: 15/ B39.01 | C84: Saw cutting pavement layers for patching:
A86: 6532 | C86: (a) Asphalt or bituminous surfacing to an average depth:
A88: 6533 | C88: (i) Not exceeding 50 mm | D88: m | E88: Rate only
A90: 6535 | B90: 15/ B39.02 | C90: Excavation in existing pavements for patching:
A92: 6536 | C92: (a) Asphalt layers or bituminous surfacing:
A94: 6537 | C94: (i) Not exceeding 10 m2 including for edge repairs wider than 250 mm | D94: m³ | E94: Rate only
A96: 6539 | C96: (c) Crushed stone layers:
A98: 6540 | C98: (i) Not exceeding 10 m2 including for edge repairs wider than 250 mm | D98: m³ | E98: Rate only
A100: 6542 | B100: 15/ B39.03 | C100: Backfilling of excavations for patching with:
A102: 6543 | C102: (d) Bitumen emulsion treated crushed-stone material (G5 quality), stabilized with (60% stable grade emulsion applied at a rate of 3,0% by mass and CEM II, grade 32.5N cement applied at a rate of 1% by mass),compacted to 100% of MDD, in layers not exceeding 150 mm, backfill material obtained from:
A104: 6544 | C104: (i) Not exceeding 10 m2 including for edge repairs wider than 250 mm | D104: m³ | E104: Rate only
A106: 6546 | B106: 15/ 39.04 | C106: Compacting the floor of excavation for patching to 95% of MDD | D106: m² | E106: Rate only
A108: 6547 | B108: 15/ 39.05 | C108: Surfacing of patch repairs with:
A110: 6548 | C110: (a) Continuously graded cold mix asphalt (Agrement SA certified), compacted in layers not exceeding 20 mm, for a patch with a surface area:
A112: 6549 | C112: (i) Not exceeding 10 m2 including for edge repairs wider than 250 mm | D112: t | E112: Rate only
A114: 6554 | C114: TEMPORARY ROAD MARKING
A116: 6555 | B116: 15/ 57.01 | C116: Road-marking paint:
B118: Total Carried Forward
D119: 18
B122: Schedule B - Works
G123: 1500 SECTION 1500: ACCOMMODATION OF TRAFFIC
B124: Item | C124: Description | D124: Unit | E124: Quantity | F124: Rate | G124: Amount R
B125: Brought Forward
A126: 6556 | C126: (a) White lines (unbroken):
A128: 6557 | C128: (i) 100 mm wide (Temporary road-marking for traffic accommodation, includes setting out and pre-marking) | D128: km | E128: 12.00
A130: 6560 | B130: 15/ B57.05 | C130: Road studs (installation and maintenance)
A132: 6561 | C132: (b) Type RSA-T as described in subclause B5702(b) Table B5702/1 (Temporary roadstuds for traffic accommodation, also includes removal after use):
A134: 6562 | C134: (i) Red / Red | D134: No | E134: 800.00
B186: Total Carried Forward To Summary
D187: 19
B190: Schedule B - Works
G191: 1700 SECTION 1700: CLEARING AND GRUBBING
B192: Item | C192: Description | D192: Unit | E192: Quantity | F192: Rate | G192: Amount R
A193: 6563 | B193: 1700 | C193: SECTION 1700: CLEARING AND GRUBBING
B195: 17.01 | C195: Clearing and grubbing within the road reserve | D195: m² | E195: 24 700.00
B197: 17.02 | C197: Removal and grubbing of large trees up to 2m girth | D197: No | E197: 500.00
B199: 17.03 | C199: Re-clearing of surfaces (on the written instructions of the Engineer only) | D199: ha | E199: 2.00
A201: 6564 | B201: 17.04 | C201: Clearing and grubbing at inlets and outlets of hydraulic structures | D201: m² | E201: 1 200.00
A203: 6565 | B203: 17.05 | C203: Cleaning out of hydraulic structures:
A205: 6566 | C205: (a) Pipes with an internal diameter up to and including 750 mm | D205: m³ | E205: 200.00
A207: 6567 | C207: (b) Pipes with an internal diameter exceeding 750 mm | D207: m³ | E207: 250.00
A209: 6568 | C209: (c) Box culverts up to and including 1,5 m vertical dimension | D209: m³ | E209: 450.00
A211: 6569 | C211: (d) Box culverts exceeding 1,5 m vertical dimension | D211: m³ | E211: 400.00
A213: 6571 | B213: B17.08 | C213: Clearing and grubbing of existing road gravel shoulder (0,6 to 1,2 m wide) | D213: m² | E213: 40 000.00
A215: 6572 | B215: B17.09 | C215: Clearing and grubbing narrow widths (0,5 to 5 m wide) | D215: m² | E215: 18 000.00
A217: 6573 | B217: B17.10 | C217: Removal of edge build-up (up to 1,0 m wide)
A219: 6574 | C219: (a) Remove material by hand and dispose of adjacent to the road | D219: m | E219: 5 000.00
A221: 6575 | C221: (b) Remove material by hand a d load to spoil area | D221: m | E221: 5 000.00
A223: 6921 | C223: (c) Remove material by machine and dispose of adjacent to the road | D223: km | E223: 15
A225: 6922 | C225: (d) Remove material by machine and load to spoil area | D225: km | E225: 15
A227: 6576 | B227: 17/ B16.02 | C227: Overhaul on material hauled in excess of 1 km | D227: m³-km | E227: 15 000.00
B241: Total Carried Forward To Summary
D242: 20
B245: Schedule B - Works
G246: 2100 SECTION 2100: DRAINS
B247: Item | C247: Description | D247: Unit | E247: Quantity | F247: Rate | G247: Amount R
A248: 6578 | B248: 2100 | C248: SECTION 2100: DRAINS
A250: 6579 | B250: B21.01 | C250: Excavation for open drains:
A251: 6580 | C251: (a) Excavating soft material situated within the following depth ranges below the surface level:
A253: 6581 | C253: (i) 0 m up to 1,5 m | D253: m³ | E253: 200
A255: 6582 | C255: (b) Extra over subitem 21.01(a) for excavation in hard and boulder material, irrespective of depth | D255: m³ | E255: 20.00
A257: 6583 | B257: 21.02 | C257: Clearing and shaping existing open drains | D257: m³ | E257: 6 000.00
A259: 6584 | B259: B21.03 | C259: Excavation for subsoil drainage systems:
A260: 6585 | C260: (a) Excavating soft material situated within the following depth ranges below the surface level:
C261: (i) 0 m and up to 1,5 m | D261: m³ | E261: 460
C263: (ii) Exceeding 1,5 m and up to 3,0 m | D263: m³ | E263: 100
A265: 6586 | C265: (b) Extra over subitem 21.03(a) for excavation in hard and boulder material, irrespective of depth | D265: m³ | E265: 250.00
A268: 6595 | B268: B21.06 | C268: Natural permeable material in subsoil drainage systems (washed crushed stone):
A269: 6596 | C269: (a) Crushed stone obtained from commercial sources:
C271: (i) Fine grade | D271: m³ | E271: 230.00
A273: 6597 | C273: (ii) Course grade | D273: m³ | E273: 230.00
A275: 6598 | B275: B21.08 | C275: Pipes in subsoil drainage systems:
A276: 6599 | C276: (a) PVC-U or HDPE pipes and fittings complete with couplings ):
A278: 6600 | C278: (i) 100 mm internal diameter, perforated or slotted | D278: m | E278: 800.00
A281: 6602 | B281: B21.09 | C281: Polymer film sheeting, or similar approved, for lining subsoil drainage systems:
A283: 6603 | C283: (a) 0,15 mm thick | D283: m² | E283: 1 560.00
A285: 6604 | B285: B21.10 | C285: Geotextiles:
B286: Total Carried Forward
D287: 21
B290: Schedule B - Works
G291: 2100 SECTION 2100: DRAINS
B292: Item | C292: Description | D292: Unit | E292: Quantity | F292: Rate | G292: Amount R
B293: Brought Forward
A294: 6605 | C294: (b) Non-woven needle punched, Grade 2 (as specified in Table B2104/2) | D294: m² | E294: 3 100.00
A296: 6606 | B296: B21.12 | C296: Concrete outlet structures, manhole boxes, junction boxes and cleaning eyes for subsoil drainage systems:
A298: 6607 | C298: (a) Outlet structures (as per Dwg ) | D298: No | E298: 2.00
A300: 6608 | C300: (d) Cleaning eyes:
A302: 6609 | C302: (i) Type 1 (as per Dwg ) | D302: No | E302: 6.00
A304: 6610 | B304: B21.13 | C304: Caps for subsoil drain pipes as specified:
A306: 6611 | C306: (c) PVC caps | D306: No | E306: 6.00
A308: 6612 | B308: 21.15 | C308: Overhaul for material hauled in excess of 1,0 km free-haul (normal overhaul) | D308: m³-km | E308: 1 000.00
A310: 6613 | B310: 21.16 | C310: Backfilling existing eroded side drains:
A312: 6614 | C312: (b) G7 quality gravel material obtained from commercial sources | D312: m³ | E312: 850.00
B313: 21.17 | C313: Test flushing of pipe subsoil drains | D313: number | E313: 5
A314: 6615 | B314: 21.18 | C314: Excavation for the clearing of existing drainage systems:
A316: 6616 | C316: (c) Concrete side drains / Stone pitch drains | D316: m³ | E316: 10.00
A318: 6617 | B318: 21.19 | C318: Selected backfill material (G7 quality material) under concrete-lined side drains compacted to 93% of MDD | D318: m³ | E318: 85.00
B320: Total Carried Forward To Summary
D321: 22
B324: Schedule B - Works
G325: 2200 SECTION 2200: PREFABRICATED CULVERTS
B326: Item | C326: Description | D326: Unit | E326: Quantity | F326: Rate | G326: Amount R
A327: 6703 | B327: 2200 | C327: SECTION 2200: PREFABRICATED CULVERTS
A328: 6704 | B328: B22.01 | C328: Excavation:
A330: 6705 | C330: (a) Excavating soft material situated within the following depth ranges below the surface level:
A332: 6706 | C332: (i) 0 m up to 1,5 m | D332: m³ | E332: 9 400.00
C334: (iI) 1.5 m up to 3.0 m | D334: m³ | E334: 1 280.00
A336: 6707 | C336: (b) Extra over subitem 22.01(a) for excavation in hard and boulder material, irrespective of depth | D336: m³ | E336: 500.00
A338: 6708 | C338: (d) Extra over subitem 22.01(a) for excavation by hand, irrespective of depth | D338: m³ | E338: 60.00
A340: 6709 | B340: B22.02 | C340: Backfilling:
A342: 6710 | C342: (a) Using excavated material within 1,0 km | D342: m³ | E342: 6 200.00
A344: 6711 | C344: (b) Using imported selected material:
A346: 6712 | C346: (i) From commercial sources (G7 quality material) | D346: m³ | E346: 2 000.00
A348: 6713 | C348: (c) Extra over subitems 22.02(a) and (b) for soil cement backfilling:
A350: 6714 | C350: (ii) With stiff mixture of approved backfill material mixed with 3% CEM II class 32.5 cement | D350: m³ | E350: 100.00
A352: 6947 | B352: 22.03 | C352: Concrete pipe culverts:
B354: (b) | C354: On class B bedding
B355: (i) | C355: Class 100 D pipes, 600mm diameter | D355: m | E355: 3200
B357: (ii) | C357: Class 100 D pipes, 750mm diameter | D357: m | E357: 980
B359: (ii) | C359: Class 100 D pipes, 900mm diameter | D359: m | E359: 110
B361: 22.05 | C361: Portal and rectangular Culverts;
B363: (b) | C363: without prefabricated floor slabs;
C365: (i) Culvert No. 14 900 mm x 600 mm | D365: m | E365: 105
C367: (ii) Culvert No. 21 1800 x 600 mm | D367: m | E367: 34
C369: (iii) Precast 900mm x 450mm BC | D369: m | E369: 40
A371: 6950 | B371: 22.07 | C371: Cast in situ concrete:
C372: (b) floor slabs portal or rectangular culverts, including formwork, joints and U2 surface finish (class of concrete indicated) | D372: m³ | E372: 105
A374: 6951 | C374: (c) In inlet and outlet structures, skewed ends, catchpits, manholes, thrust and anchor blocks, excluding formwork but including class U2 surface finish (Class 25/20) | D374: m³ | E374: 45.00
A376: 6717 | C376: (d) Formwork of concrete under subitem 22.07(c) above:
A378: 6718 | C378: (i) Vertical formwork F1 surface finish | D378: m² | E378: 95.00
A380: 6719 | C380: (ii) Vertical formwork F2 surface finish | D380: m² | E380: 95.00
A382: 6720 | B382: 22.10 | C382: Steel reinforcement:
A384: 6723 | C384: (c ) Welded steel fabric mesh Ref No. 395 | D384: kg | E384: 1 520.00
B385: Total Carried Forward
D386: 23
B388: Schedule B - Works
G389: 2200 SECTION 2200: PREFABRICATED CULVERTS
B391: Item | C391: Description | D391: Unit | E391: Quantity | F391: Rate | G391: Amount R
B392: Brought Forward | G392: =G385 -> R0.00
B394: 22.13 | C394: removing and re-laying exsisting pipes (450mm concrete pipes of length less than 30m on Class B Bedding)
C396: (i) Class 75D pipes, 600mm diameter @ Km 7.4+450 | D396: m | E396: 20.46
C398: (ii) Class 75D pipes, 600mm diameter @ Km 13+780 | D398: m | E398: 19.25
C400: (iii) Class 75D pipes, 600mm diameter @ Km 17+140 | D400: m | E400: 17.58
C402: (iv) Class 75D pipes, 600mm diameter @ Km 18+140 | D402: m | E402: 19.58
A403: 6725
C404: (v) Class 75D pipes, 600mm diameter @ Km 19+387 | D404: m | E404: 13.86
B406: 22.17 | C406: Manholes ,catchpits,precast inlet and outlet structures
B408: (a) | C408: Brickwall Manholes including manhole covers (standard depths:1,5m)
C410: (i) 1000mm x 1000 mm | D410: No | E410: 15
B412: (b) | C412: Brickwall Catchpits :
C414: (i) 1000mm x 1000 mm | D414: No. | E414: 62
A416: 6728 | B416: 22.21 | C416: Accessories:
A418: 6729 | C418: (f) 50 mm diameter uPVC weepholes for wingwalls | D418: No | E418: 100.00
B421: Total Carried Forward To Summary
... 365 more rows

Sheet Summary of Schedules
A1: Rate=F | B1: PROVINCIAL PAVED ROADS REHABILITATION OF MR00381 (HUMANSDORP TO FRANCIS BAY)
B3: SUMMARY OF SCHEDULES OF QUANTITIES
B4: Schedule | C4: Description | D4: Amount R
B5: SCHEDULE A: GENERAL
B6: 1200 | C6: GENERAL REQUIREMENTS AND PROVISIONS
B8: 1300 | C8: CONTRACTOR’S SITE ESTABLISHMENT AND GENERAL OBLIGATIONS
B10: 1400 | C10: HOUSING, OFFICES AND LABORATORY FOR THE ENGINEER'S SITE PERSONNEL
B12: B1800 | C12: SECTION B1800: DAYWORKS
B14: 8100 | C14: SECTION 8100: TESTING MATERIALS AND WORKMANSHIP
B16: C SECTION | C16: OCCUPATIONAL HEALTH AND SAFETY
B18: D SECTION | C18: HIV/AIDS AWARENESS
B20: E SECTION | C20: TARGETED LABOUR PARTICIPATION AND DEVELOPMENT
B22: F SECTION | C22: ENVIRONMENTAL MANAGEMENT PLAN IMPLEMENTATION
B24: G1 SECTION | C24: TARGETED SUBCONTRACTOR PARTICIPATION AND DEVELOPMENT
B26: TOTAL SCHEDULE A: GENERAL
B28: SCHEDULE B: ROADWORKS
B29: 1500 | C29: ACCOMMODATION OF TRAFFIC
B31: 1700 | C31: CLEARING AND GRUBBING
B33: 2100 | C33: DRAINS
B35: 2200 | C35: PREFABRICATED CULVERTS
B37: 2300 | C37: CONCRETE KERBING, CONCRETE CHANNELLING, CHUTES AND DOWNPIPES, AND CONCRETE LININGS FOR OPEN DRAINS
B39: 3300 | C39: MASS EARTHWORKS
B41: 3400 | C41: PAVEMENT LAYERS OF GRAVEL MATERIAL
B43: 3500 | C43: STABILIZATION
B45: 3600 | C45: CRUSHED STONE BASE
B47: 3800 | C47: BREAKING UP EXISTING PAVEMENT LAYERS
B49: 4100 | C49: PRIME COAT
B51: 4200 | C51: ASPHALT BASE AND SURFACING
B53: 4500 | C53: DOUBLE SEALS
B55: 5100 | C55: PITCHING, STONEWORK AND PROTECTION AGAINST EROSION
B57: 5400 | C57: GUARDRAILS
B59: 5600 | C59: ROAD SIGNS
B61: 5700 | C61: ROAD MARKINGS
B63: 5900 | C63: FINISHING THE ROAD AND ROAD RESERVE AND TREATING OLD ROADS
B65: 6400 | C65: CONCRETE FOR STRUCTURES
B66: 6600 | C66: NO-FINES CONCRETE, JOINTS, BEARINGS, PARAPETS AND DRAINAGE FOR STRUCTURES
B68: 7300 | C68: CONCRETE BLOCK PAVING FOR ROADS
B70: TOTAL SCHEDULE B: ROADWORKS
B72: SUBTOTAL (A + B)
B73: PLUS, CPA | C73: 5%
B75: PLUS, CONTINGENCIES | C75: 10%
B76: Contingency
B77: SUB TOTAL
B78: 15% V.A.T. | C78: 15%
B80: TOTAL
